Cogmind - Beta 12 @@@ ROGUE MODE // 2023.03.30 @ 09:36:17 Player: wchar_t Result: Destroyed by H-77 Assassin with Coil Gun Performance ------------- Evolutions (7) 3500 Regions Visited (12) 2400 Robots Destroyed (7) 35 Value Destroyed (266) 266 Prototype IDs (27) 540 Alien Tech Used (0) 0 Bonus (5685) 5685 TOTAL SCORE: 12426 Bonus ------- Pacifist 3885 Triggered Max Security 1000 Entered DSFs 500 Aligned with FarCom 300 Cogmind --------- Core Integrity 0/1300 Matter 105/300 Energy 99/100 System Corruption 0% Temperature Cool (0) Movement Core (50) Location -3/Testing Parts ------- > --- POWER (1) -------- (None) > --- PROPULSION (7) --- (None) > --- UTILITY (11) ----- (None) > --- WEAPON (2) ------- (None) > --- INVENTORY (5) ---- Field Propulsion Drive Field Propulsion Drive Cloak of Protection Layered Medium Armor Plating Peak State ------------ > --- POWER ------------ Light Particle Reactor > --- PROPULSION ------- Improved Antigrav System Xenon Bombardment Thruster Field Propulsion Drive Q-thruster Electron Diverter Impulse Thruster Array > --- UTILITY ---------- Triangulator Core Analyzer Improved System Shield Advanced System Shield Authchip [Processor] Corruption Screen > --- WEAPON ----------- High-powered Disruptor Cannon > --- INVENTORY -------- Field Propulsion Drive Field Propulsion Drive Electron Diverter Cloak of Protection Layered Medium Armor Plating [Rating: 115] Favorites ----------- Power Micro Nuclear Core Power Core Micro Nuclear Core Reactor Light Particle Reactor Propulsion Xenon Bombardment Thruster Leg Improved Aluminum Leg Hover Unit Improved Antigrav System Flight Unit Xenon Bombardment Thruster Utility Corruption Screen Device Advanced ECM Suite Processor Corruption Screen Hackware Authchip [Processor] Protection Improved Medium Armor Plating Weapon Mace Energy Cannon High-powered Disruptor Cannon Launcher Missile Launcher Impact Weapon Mace Build | -11 -10 -10 -10 -9 -8 -7 -6 -6 -5 -4 -3 -3 ------- Run | Jun Mat Min Exi Min Mat Fac Fac DSF Fac Fac Res Tes Slots Evolved 14 | . . . . . 4 2 2 . 2 2 2 . Power . | . . . . . . . . . . . . . Propulsion 5 | . . . . . 2 1 . . 1 1 . . Utility 9 | . . . . . 2 1 2 . 1 1 2 . Weapon . | . . . . . . . . . . . . . Parts Attached 65 | . 2 . 1 1 9 1 4 . 4 7 27 9 Power 8 | . . . . . 1 . . . . 2 4 1 Engine . | . . . . . . . . . . . . . Core 3 | . . . . . 1 . . . . 1 1 . Reactor 5 | . . . . . . . . . . 1 3 1 Propulsion 32 | . 2 . . . 4 . . . 2 3 16 5 Treads . | . . . . . . . . . . . . . Leg 2 | . 2 . . . . . . . . . . . Wheel . | . . . . . . . . . . . . . Hover 8 | . . . . . . . . . 2 3 3 . Flight 22 | . . . . . 4 . . . . . 13 5 Utility 18 | . . . 1 1 3 1 4 . . 2 5 1 Device 10 | . . . 1 . 1 1 3 . . 1 3 . Storage . | . . . . . . . . . . . . . Processor 3 | . . . . . 2 . . . . 1 . . Hackware 4 | . . . . 1 . . . . . . 2 1 Protection 1 | . . . . . . . 1 . . . . . Artifact . | . . . . . . . . . . . . . Weapon 7 | . . . . . 1 . . . 2 . 2 2 Energy Gun . | . . . . . . . . . . . . . Energy Cannon 1 | . . . . . . . . . . . . 1 Ballistic Gun . | . . . . . . . . . . . . . Ballistic Cannon . | . . . . . . . . . . . . . Launcher 1 | . . . . . . . . . . . 1 . Special Weapon . | . . . . . . . . . . . . . Impact Weapon 5 | . . . . . 1 . . . 2 . 1 1 Slashing Weapon . | . . . . . . . . . . . . . Piercing Weapon . | . . . . . . . . . . . . . Special Melee Weapon . | . . . . . . . . . . . . . Unidentified Prototypes 4 | . . . . . . . . . 1 1 1 1 Parts Lost 33 | . . . . . . . . 1 . 1 17 14 Power 3 | . . . . . . . . . . . 2 1 Propulsion 21 | . . . . . . . . 1 . . 11 9 Utility 8 | . . . . . . . . . . 1 3 4 Weapon 1 | . . . . . . . . . . . 1 . Highest Loss Streak 14 | . . . . . . . . 1 . 1 8 14 To Critical Strikes 1 | . . . . . . . . . . . 1 . Average Slot Usage (%) 55 | . 28 28 34 46 54 69 75 66 63 72 61 53 Core 2 | . . . . . 3 7 6 6 5 5 1 . Reactor 1 | . . . . . . . . . . . 2 2 Leg 7 | . 28 28 28 28 9 . . . . . . . Hover 5 | . . . . . . . . . 4 17 7 3 Flight 14 | . . . . . 13 30 26 20 17 15 19 16 Device 7 | . . . 6 14 9 7 18 20 17 14 6 3 Processor 6 | . . . . . 9 15 10 6 5 8 9 8 Hackware 5 | . . . . 4 9 7 6 6 5 5 6 12 Protection 1 | . . . . . . . 5 6 5 5 . . Impact Weapon 1 | . . . . . 1 . . . . . 3 2 Naked Turns 10 | . 7 . . . . . . . . . . 3 Heaviest Build 31 | . . . 2 2 10 9 24 18 18 18 31 17 Greatest Support 46 | 3 3 3 3 3 24 24 24 24 18 18 46 45 Greatest Overweight (x) . | . . . . . . . . . . . . . Average Overweight (x) . | . . . . . . . . . . . . . Largest Inventory Capacity 5 | 5 5 5 5 5 5 5 5 5 5 5 5 5 Average Capacity 5 | 5 5 5 5 5 5 5 5 5 5 5 5 5 Most Carried 5 | . 3 5 5 5 5 5 5 5 5 5 5 5 Average Carried 4 | . 1 3 4 5 4 4 5 5 4 5 4 4 Final Capacity 5 | 5 5 5 5 5 5 5 5 5 5 5 5 5 Final Carried 5 | . 3 5 5 5 5 5 5 5 5 5 5 4 Class Distribution -------------------- 57% | Mutant 17% | Sprinter 10% | Hacker-Sprinter 6% | Infiltrator-Sprinter 3% | Infiltrator-Mutant 3% | Hacker-Mutant Dominant Class ---------------- Mutant | -10/Mines Mutant | -10/Exiles Mutant | -9/Mines Sprinter | -8/Materials Sprinter | -7/Factory Sprinter | -6/Factory Mutant | -6/DSF Mutant | -5/Factory Mutant | -4/Factory Sprinter | -3/Research Hacker-Sprinter | -3/Testing Resources | -11 -10 -10 -10 -9 -8 -7 -6 -6 -5 -4 -3 -3 ----------- Run | Jun Mat Min Exi Min Mat Fac Fac DSF Fac Fac Res Tes Matter Collected 543 | 151 . . . 76 . . 120 . . . 81 115 Remotely . | . . . . . . . . . . . . . Salvage Created 183 | . . . . . . . . . . . 87 96 Parts 9 | . . . . . . . . . . . 9 . Haulers Intercepted . | . . . . . . . . . . . . . Recyclers Shooed . | . . . . . . . . . . . . . Parts Field Recycled . | . . . . . . . . . . . . . Retrieved Matter . | . . . . . . . . . . . . . Parts Self-Destructed . | . . . . . . . . . . . . . Prevented . | . . . . . . . . . . . . . Kills | -11 -10 -10 -10 -9 -8 -7 -6 -6 -5 -4 -3 -3 ------- Run | Jun Mat Min Exi Min Mat Fac Fac DSF Fac Fac Res Tes Combat Hostiles Destroyed 5 | . . . . . . . . . . . 5 . AOE 5 | . . . . . . . . . . . 5 . Classes Destroyed 3 | . . . . . . . . . . . 2 1 Worker 1 | . . . . . . . . . . . 1 . Recycler 1 | . . . . . . . . . . . . 1 Swarmer 5 | . . . . . . . . . . . 5 . Best Kill Streak 6 | . . . . . . . . . . . 6 1 Combat Bots Only 5 | . . . . . . . . . . . 5 . Max Kills in Single Turn 2 | . . . . . . . . . . . 2 1 Gunslinging . | . . . . . . . . . . . . . Exploded 2 | . . . . . . . . . . . 2 . Melee . | . . . . . . . . . . . . . Uniques/NPCs Destroyed . | . . . . . . . . . . . . . Combat | -11 -10 -10 -10 -9 -8 -7 -6 -6 -5 -4 -3 -3 -------- Run | Jun Mat Min Exi Min Mat Fac Fac DSF Fac Fac Res Tes Damage Taken 3511 | . . 8 . 27 6 12 . 59 . 140 2049 1210 Core 1321 | . . . . . 2 12 . . . . 546 761 Absorbed by Shields . | . . . . . . . . . . . . . Core Remaining (%) 99 | 100 . . . 100 99 98 . 100 100 100 . . Volleys Fired 6 | . . . . . . . . . . . 6 . Largest 1 | . . . . . . . . . . . 1 . Hottest 36 | . . . . . . . . . . . 36 . Shots Fired 6 | . . . . . . . . . . . 6 . Gun . | . . . . . . . . . . . . . Cannon . | . . . . . . . . . . . . . Launcher 6 | . . . . . . . . . . . 6 . Special . | . . . . . . . . . . . . . Kinetic . | . . . . . . . . . . . . . Thermal . | . . . . . . . . . . . . . Explosive 6 | . . . . . . . . . . . 6 . Electromagnetic . | . . . . . . . . . . . . . Robot Hit Streak 1 | . . . . . . . . . . . 1 . Robot Miss Streak 1 | . . . . . . . . . . . 1 . Penetration Max . | . . . . . . . . . . . . . Secondary Targets . | . . . . . . . . . . . . . Shots Hit Robots 5 | . . . . . . . . . . . 2 3 Core Hits 14 | . . . . . . . . . . . 14 . Critical Kills . | . . . . . . . . . . . . . Critical Parts Destroyed . | . . . . . . . . . . . . . Critical Strikes . | . . . . . . . . . . . . . Melee Attacks 38 | . . . . . 7 . . . 2 . 24 5 Impact 38 | . . . . . 7 . . . 2 . 24 5 Slashing . | . . . . . . . . . . . . . Piercing . | . . . . . . . . . . . . . Sneak Attacks 2 | . . . . . . . . . . . 1 1 Combat Hostiles . | . . . . . . . . . . . . . Follow-up Attacks . | . . . . . . . . . . . . . Damage Inflicted 869 | . . 17 . 13 13 . . . . . 701 125 Guns . | . . . . . . . . . . . . . Cannons . | . . . . . . . . . . . . . Explosions 651 | . . . . . . . . . . . 651 . Melee 174 | . . . . . . . . . . . 50 124 Ramming 44 | . . 17 . 13 13 . . . . . . 1 Kinetic . | . . . . . . . . . . . . . Thermal . | . . . . . . . . . . . . . Explosive 651 | . . . . . . . . . . . 651 . Electromagnetic . | . . . . . . . . . . . . . Impact 174 | . . . . . . . . . . . 50 124 Slashing . | . . . . . . . . . . . . . Piercing . | . . . . . . . . . . . . . Highest Corruption 3 | . . . . 3 1 . . . . . . . Average Corruption 1 | . . . . 2 1 . . . . . . . Corruption Purged . | . . . . . . . . . . . . . Corruption Blocked 3 | . . . . . . . . . . . 2 1 Overload Shots . | . . . . . . . . . . . . . Overflow Damage 84 | . . . . . . . . . . . 39 45 Projectiles . | . . . . . . . . . . . . . Explosions 39 | . . . . . . . . . . . 39 . Melee 45 | . . . . . . . . . . . . 45 Knockbacks 3 | . . 1 . 1 . . . . . . 1 . Impact 3 | . . 1 . 1 . . . . . . 1 . Kinetic . | . . . . . . . . . . . . . Secondary . | . . . . . . . . . . . . . Self-Inflicted Damage 73 | . . 8 . 5 6 . . . . . 54 . Shots 1 | . . . . . . . . . . . 1 . Rammed 9 | . . 1 . 3 4 . . . . . . 1 Targets Rammed 9 | . . 1 . 3 4 . . . . . . 1 Kicked . | . . . . . . . . . . . . . Crushed . | . . . . . . . . . . . . . Highest Temperature 203 | . . . . . . . . . . . 203 13 Average Temperature 63 | . . . . . . . . . . . 65 8 Received Heat Transfer 311 | . . . . 12 . 6 . 9 . 9 175 100 Siege Activations . | . . . . . . . . . . . . . Robots Corrupted . | . . . . . . . . . . . . . Combat Hostiles . | . . . . . . . . . . . . . Parts Fried 1 | . . . . . . . . . . . . 1 Impact Corruptions 4 | . . . . . . . . . . . . 4 Robots Melted . | . . . . . . . . . . . . . Combat Hostiles . | . . . . . . . . . . . . . Parts Melted . | . . . . . . . . . . . . . Heat Transferred . | . . . . . . . . . . . . . Parts Sabotaged 6 | . . . . . . . . . . . . 6 Parts Stolen . | . . . . . . . . . . . . . Parts Stripped . | . . . . . . . . . . . . . Power Chain Reactions . | . . . . . . . . . . . . . Missiles Intercepted . | . . . . . . . . . . . . . Alert | -11 -10 -10 -10 -9 -8 -7 -6 -6 -5 -4 -3 -3 ------- Run | Jun Mat Min Exi Min Mat Fac Fac DSF Fac Fac Res Tes Peak Influence 1865 | . . 85 . . 34 67 32 27 48 95 559 1865 Initial 314 | . . . . . . 15 32 22 14 23 49 314 Average 273 | . . 34 . . 21 39 32 17 29 44 189 1637 Maximum Alert Level 5 | . . . . . . . . . . . 2 5 Low Security (%) 71 | 100 100 100 . 100 100 100 100 100 100 100 55 . Level 1 12 | . . . . . . . . . . . 33 . Level 2 4 | . . . . . . . . . . . 11 . Level 3 . | . . . . . . . . . . . . . Level 4 . | . . . . . . . . . . . . . Level 5 . | . . . . . . . . . . . . . High Security . | . . . . . . . . . . . . . Max Security 11 | . . . . . . . . . . . . 99 Squads Dispatched 18 | . . . . 1 1 1 1 . . 3 5 6 Investigation 8 | . . . . . . 1 1 . . 3 3 . Extermination 2 | . . . . . . . . . . . 2 . Reinforcement 2 | . . . . 1 1 . . . . . . . Assault 6 | . . . . . . . . . . . . 6 Garrison . | . . . . . . . . . . . . . Intercept . | . . . . . . . . . . . . . Searches Triggered . | . . . . . . . . . . . . . Construction Impeded 1 | . . . . 1 . . . . . . . . Haulers Reinforced . | . . . . . . . . . . . . . Active Scanning Responses . | . . . . . . . . . . . . . Cargo Convoy Interrupts . | . . . . . . . . . . . . . Stealth | -11 -10 -10 -10 -9 -8 -7 -6 -6 -5 -4 -3 -3 --------- Run | Jun Mat Min Exi Min Mat Fac Fac DSF Fac Fac Res Tes Distress Signals 5 | . . . . . . . . . . . 4 1 Communications Jammed . | . . . . . . . . . . . . . Distress Signals . | . . . . . . . . . . . . . Times Spotted 140 | . . 2 . 5 3 4 . 2 4 5 57 58 Peak Tracking Total 34 | . . 2 . 5 3 4 . 2 4 5 14 34 Tactical Retreats 21 | . . 1 . . . . . 1 . 1 15 3 Traps | -11 -10 -10 -10 -9 -8 -7 -6 -6 -5 -4 -3 -3 ------- Run | Jun Mat Min Exi Min Mat Fac Fac DSF Fac Fac Res Tes Traps Triggered 3 | . . . . . . . 1 . . 1 1 . Indirectly . | . . . . . . . . . . . . . Trap Hack Attempts . | . . . . . . . . . . . . . Triggered . | . . . . . . . . . . . . . Disarmed . | . . . . . . . . . . . . . Reprogrammed . | . . . . . . . . . . . . . Reused . | . . . . . . . . . . . . . Traps Extracted . | . . . . . . . . . . . . . Installed . | . . . . . . . . . . . . . Triggered . | . . . . . . . . . . . . . Machines | -11 -10 -10 -10 -9 -8 -7 -6 -6 -5 -4 -3 -3 ---------- Run | Jun Mat Min Exi Min Mat Fac Fac DSF Fac Fac Res Tes Machines Disabled 4 | . . . . . . . . . . . 2 2 Max in Single Turn 1 | . . . . . . . . . . . 1 1 Garrison Access 2 | . . . . . . . 1 . . . 1 . Machines Repaired . | . . . . . . . . . . . . . Machines Sabotaged . | . . . . . . . . . . . . . Overloaded Fab Kills . | . . . . . . . . . . . . . Hacking | -11 -10 -10 -10 -9 -8 -7 -6 -6 -5 -4 -3 -3 --------- Run | Jun Mat Min Exi Min Mat Fac Fac DSF Fac Fac Res Tes Machines Accessed 25 | . . . 2 . . 2 3 . . 6 12 . Terminals 19 | . . . . . . 2 2 . . 5 10 . Fabricators 2 | . . . . . . . . . . 1 1 . Repair Stations . | . . . . . . . . . . . . . Recycling Units . | . . . . . . . . . . . . . Scanalyzers . | . . . . . . . . . . . . . Garrison Access 2 | . . . . . . . 1 . . . 1 . Total Hacks 47 | . . . 2 . . 5 6 . . 12 22 . Successful 16 | . . . 2 . . 2 2 . . 2 8 . Failed 31 | . . . . . . 3 4 . . 10 14 . Catastrophic 11 | . . . . . . 1 1 . . 4 5 . Database Lockouts . | . . . . . . . . . . . . . Manual 14 | . . . 1 . . 5 . . . 3 5 . Terminals 39 | . . . . . . 5 4 . . 10 20 . Fabricators 3 | . . . . . . . . . . 2 1 . Repair Stations . | . . . . . . . . . . . . . Recycling Units . | . . . . . . . . . . . . . Scanalyzers . | . . . . . . . . . . . . . Garrison Access 3 | . . . . . . . 2 . . . 1 . Terminal Hacks 9 | . . . 2 . . 1 1 . . 1 4 . Record 1 | . . . 1 . . . . . . . . . Robot Analysis 1 | . . . . . . 1 . . . . . . Open DSF 1 | . . . . . . . 1 . . . . . Level Access Points 2 | . . . . . . . . . . 1 1 . Branch Access Points 1 | . . . . . . . . . . . 1 . Unreport Threat 1 | . . . . . . . . . . . 1 . Registered Components 1 | . . . . . . . . . . . 1 . EX-Prototype ID Bank 1 | . . . 1 . . . . . . . . . Fabricator Hacks 1 | . . . . . . . . . . . 1 . Network Status 1 | . . . . . . . . . . . 1 . Repair Station Hacks . | . . . . . . . . . . . . . Recycling Unit Hacks . | . . . . . . . . . . . . . Scanalyzer . | . . . . . . . . . . . . . Garrison Access Hacks 2 | . . . . . . . 1 . . . 1 . Seal Access 2 | . . . . . . . 1 . . . 1 . Unauthorized Hacks 4 | . . . . . . 1 . . . 1 2 . Terminals 4 | . . . . . . 1 . . . 1 2 . Assimilate 4 | . . . . . . 1 . . . 1 2 . Fabricators . | . . . . . . . . . . . . . Repair Stations . | . . . . . . . . . . . . . Recycling Units . | . . . . . . . . . . . . . Scanalyzers . | . . . . . . . . . . . . . Garrison Access . | . . . . . . . . . . . . . Data Cores Recovered . | . . . . . . . . . . . . . Used . | . . . . . . . . . . . . . Hacking Detections 20 | . . . . . . 2 3 . . 6 9 . Full Trace Events 6 | . . . . . . 1 . . . 3 2 . Feedback Events 2 | . . . . . . . . . . . 2 . Corruption 2 | . . . . . . . . . . . 2 . Feedback Blocked . | . . . . . . . . . . . . . Robot Schematics Acquired . | . . . . . . . . . . . . . Robots Built . | . . . . . . . . . . . . . Authchips . | . . . . . . . . . . . . . Time . | . . . . . . . . . . . . . Total Robot Build Rating . | . . . . . . . . . . . . . Part Schematics Acquired . | . . . . . . . . . . . . . Parts Built . | . . . . . . . . . . . . . Authchips . | . . . . . . . . . . . . . Time . | . . . . . . . . . . . . . Total Part Build Rating . | . . . . . . . . . . . . . Parts Repaired . | . . . . . . . . . . . . . Time . | . . . . . . . . . . . . . Parts Recycled . | . . . . . . . . . . . . . Recycled Matter . | . . . . . . . . . . . . . Retrieved Matter . | . . . . . . . . . . . . . Retrieved Components . | . . . . . . . . . . . . . Parts Scanalyzed . | . . . . . . . . . . . . . Part Schematics Acquired . | . . . . . . . . . . . . . Parts Damaged . | . . . . . . . . . . . . . Bothacking | -11 -10 -10 -10 -9 -8 -7 -6 -6 -5 -4 -3 -3 ------------ Run | Jun Mat Min Exi Min Mat Fac Fac DSF Fac Fac Res Tes Used RIF Installer . | . . . . . . . . . . . . . Robots Hacked . | . . . . . . . . . . . . . Non-combat . | . . . . . . . . . . . . . Combat . | . . . . . . . . . . . . . Robot Hacks Applied . | . . . . . . . . . . . . . Relay Couplers Released . | . . . . . . . . . . . . . Fabnet Peak Effective % . | . . . . . . . . . . . . . Robots Rewired . | . . . . . . . . . . . . . Allies Hacked . | . . . . . . . . . . . . . Hacks Repelled . | . . . . . . . . . . . . . Allies | -11 -10 -10 -10 -9 -8 -7 -6 -6 -5 -4 -3 -3 -------- Run | Jun Mat Min Exi Min Mat Fac Fac DSF Fac Fac Res Tes Total Allies 5 | . . 3 . . . . . . . 1 1 . Largest Group 3 | . . 3 . . . . . . . 1 1 . Highest-Rated Group 45 | . . 40 . . . . . . . 26 45 . Highest-Rated Ally 45 | . . 16 . . . . . . . 26 45 . Total Orders . | . . . . . . . . . . . . . Ally Attacks 6 | . . 6 . . . . . . . . . . Total Damage 92 | . . 92 . . . . . . . . . . Kills 3 | . . 3 . . . . . . . . . . Allies Corrupted . | . . . . . . . . . . . . . Allies Melted . | . . . . . . . . . . . . . Intel | -11 -10 -10 -10 -9 -8 -7 -6 -6 -5 -4 -3 -3 ------- Run | Jun Mat Min Exi Min Mat Fac Fac DSF Fac Fac Res Tes Robot Analysis Total 1 | . . . . . . 1 . . . . . . Derelict Logs Recovered 3 | . . 3 . . . . . . . . . . Drone Launches . | . . . . . . . . . . . . . Drone Recoveries . | . . . . . . . . . . . . . Exploration | -11 -10 -10 -10 -9 -8 -7 -6 -6 -5 -4 -3 -3 ------------- Run | Jun Mat Min Exi Min Mat Fac Fac DSF Fac Fac Res Tes Turns Passed 1868 | 9 26 249 106 72 103 58 58 30 77 198 683 199 Spaces Moved 4213 | 18 40 492 207 131 138 163 163 89 131 536 1585 520 Core 999 | 18 40 492 207 131 91 . . . . . . 20 Treads . | . . . . . . . . . . . . . Legs . | . . . . . . . . . . . . . Wheels . | . . . . . . . . . . . . . Hover . | . . . . . . . . . . . . . Flight 3214 | . . . . . 47 163 163 89 131 536 1585 500 Fastest Speed 23 | 50 50 50 50 50 31 31 31 31 34 34 23 28 Average Speed 36 | 50 50 50 50 50 43 31 31 33 34 34 31 31 Slowest Speed 50 | 50 50 50 50 50 50 31 31 34 34 34 39 50 Overloaded Moves . | . . . . . . . . . . . . . Propulsion Burnouts . | . . . . . . . . . . . . . Robots Hopped 43 | . . . . . . 1 . . 3 2 23 14 Cave-ins Triggered . | . . . . . . . . . . . . . Exploration Rate (%) 35 | 4 11 97 59 39 19 7 7 82 5 16 42 69 Regions Visited 12 Branch Regions 4 Pre-discovered Areas 1 | . . . 1 . . . . . . . . . Known Exits Taken 4 | . . . . . 1 . 1 . . 1 1 . Unknown Exits Taken 7 | 1 1 1 1 1 . 1 . . 1 . . . Scrap Searched 3 | . . 2 . 1 . . . . . . . . Spaces Dug 25 | . . . . . 7 . . . 2 . 16 . Terrain Destroyed 45 | . . . . . 7 . . . 2 . 36 . Melee 15 | . . . . . 7 . . . 2 . 6 . Projectile . | . . . . . . . . . . . . . AOE 30 | . . . . . . . . . . . 30 . Terrain Rammed . | . . . . . . . . . . . . . Walls Destroyed . | . . . . . . . . . . . . . Machines Disabled . | . . . . . . . . . . . . . Actions | -11 -10 -10 -10 -9 -8 -7 -6 -6 -5 -4 -3 -3 --------- Run | Jun Mat Min Exi Min Mat Fac Fac DSF Fac Fac Res Tes Total 4412 | 17 44 494 208 136 167 169 168 88 156 548 1686 531 Wait 89 | . . . . 2 2 4 . . 21 5 50 5 Move 4127 | 17 39 491 206 130 137 160 162 88 124 531 1544 498 Hop 31 | . . . . . . 1 . . 3 2 17 8 Pick Up 16 | . 3 2 1 . 2 1 . . . . 6 1 Fast Attach 48 | . 2 . . 1 8 1 4 . 2 4 18 8 Attach 11 | . . . 1 . 1 . . . 2 . 6 1 Detach 7 | . . . . . 1 . 1 . 2 . 3 . Swap 6 | . . . . . . . . . . 3 3 . Drop 24 | . . . . . 5 2 1 . . 3 9 4 Fire 6 | . . . . . . . . . . . 6 . Melee 38 | . . . . . 7 . . . 2 . 24 5 Ram 9 | . . 1 . 3 4 . . . . . . 1 Kick . | . . . . . . . . . . . . . Crush . | . . . . . . . . . . . . . Escape Stasis . | . . . . . . . . . . . . . Rewire . | . . . . . . . . . . . . . Trap . | . . . . . . . . . . . . . Miscellaneous . | . . . . . . . . . . . . . Route ------- -11/Junkyard -10/Materials -10/Mines (discovered 3 exits: [*Mat x2] / *Exi) -10/Exiles -9/Mines -8/Materials (discovered 2 exits: *Fac x2) -7/Factory -6/Factory -6/DSF -5/Factory -4/Factory (discovered 4 exits: *Res x4) -3/Research (discovered 5 exits: Res x3 / *Tes x2) -3/Testing History --------- Turn | Location | Event 3 | -11/Junkyard | Discovered new exit (range 15) 10 | -11/Junkyard | Entered Materials 29 | -10/Materials | Discovered new exit (range 15) 36 | -10/Materials | Entered Mines 59 | -10/Mines | Assisted by bots powering up and referring to "LRC-V3" 137 | -10/Mines | Learned Materials terminal intel 137 | -10/Mines | Discovered new exit (range 11) 146 | -10/Mines | Received a Rocket Launcher from a helpful Derelict 199 | -10/Mines | Learned location of 2 exits from Materials 203 | -10/Mines | Learned Materials security intel 238 | -10/Mines | Discovered new exit (range 7) 283 | -10/Mines | Deemed a non-threat by the Exiles lab entrance 283 | -10/Mines | Discovered new exit (range 5) 285 | -10/Mines | Entered Exiles 298 | -10/Exiles | Met 8R-AWN 306 | -10/Exiles | Build established: Mutant 306 | -10/Exiles | Met EX-HEX 321 | -10/Exiles | Met EX-BIN 327 | -10/Exiles | Aligned with FarCom system 327 | -10/Exiles | Given EX-Vault access code 339 | -10/Exiles | Opened EX-Vault 343 | -10/Exiles | Found Cloak of Protection 354 | -10/Exiles | Warned to stay clear of 0b10 Research branches 368 | -10/Exiles | Met EX-DEC 370 | -10/Exiles | Learned location of Zion (-6) 384 | -10/Exiles | Discovered new exit (range 14) 391 | -10/Exiles | Left Exiles lab with Cloak of Protection 391 | -10/Exiles | Entered Mines 406 | -9/Mines | Found a hidden stash of uninstalled traps 446 | -9/Mines | Met a Derelict bent on vengeance 457 | -9/Mines | Assembled infested the area 461 | -9/Mines | Discovered new exit (range 3) 463 | -9/Mines | Entered Materials 463 | -8/Materials | Evolved 4 slots: Propulsion x2, Utility x2 464 | -8/Materials | Identified exit to Factory 466 | -8/Materials | Loaded intel: 11 terminal locations 566 | -8/Materials | Entered Factory 566 | -7/Factory | Evolved 2 slots: Propulsion x1, Utility x1 591 | -7/Factory | Discovered new exit (range 12) 624 | -7/Factory | Entered another Factory area 624 | -6/Factory | Evolved 2 slots: Utility x2 681 | -6/Factory | Identified exit to DSF 682 | -6/Factory | Entered DSF 703 | -6/DSF | Additional patrols routed to DSF 707 | -6/DSF | Discovered new exit (range 16) 712 | -6/DSF | Entered Factory 712 | -5/Factory | Evolved 2 slots: Propulsion x1, Utility x1 785 | -5/Factory | Discovered new exit (range 12) 789 | -5/Factory | Entered another Factory area 789 | -4/Factory | Evolved 2 slots: Propulsion x1, Utility x1 909 | -4/Factory | Identified exit to Research 987 | -4/Factory | Entered Research 987 | -3/Research | Evolved 2 slots: Utility x2 1148 | -3/Research | Lost 8 parts (1p5n1u1w) 1229 | -3/Research | Lost 6 parts (5n1u) 1264 | -3/Research | Spotted B-86 Titan 1449 | -3/Research | Identified exit to Testing 1574 | -3/Research | Spotted B-86 Titan 1594 | -3/Research | Identified exit to Research 1670 | -3/Research | Entered Testing 1671 | -3/Testing | Maximum security lockdown engaged 1751 | -3/Testing | Found Prototype Energy Cannon 1751 | -3/Testing | Identified Hpw. Disruptor Cannon 1811 | -3/Testing | Spotted Striker 1819 | -3/Testing | Core integrity fell below 50% 1862 | -3/Testing | Core integrity fell below 20% 1869 | -3/Testing | Destroyed by H-77 Assassin with Coil Gun Last Messages --------------- 01848_ Adv. System Shield blown off. 01848_ Core Analyzer blown off. 01848_ Triangulator blown off. 01848_ E-15 Imp destroyed. 01849_ Acquired Electron Diverter. 01851_ Acquired Cesium-ion Thruster. 01854_ Corruption Screen intercepted 1% system corruption. 01856_ Electron Diverter destroyed. 01857_ P-80 Master resets S-43 Plague, system corruption cleaned. 01858_ S-43 Plague destroyed. 01858_ Cesium-ion Thruster destroyed. 01859_ System Shield destroyed. 01861_ Imp. System Shield destroyed. 01861_ Slammed into P-80 Master. 01862_ Slug penetrates Wall. 01865_ Penetrated by Slug. 01866_ Corruption Screen destroyed. 01869_ Slug penetrates Resonance Scanner. 01869_ W-44 Eye sends out distress signal. 01869_ Slug penetrates Wall. Map ----- +----------------------------------------------------+ | ?????? ??# # #?????#####???? | | ??????"" ?# # [#?????????????? | | ??????""" ?# # #?????????????? | | ?????""" # ######+#######?????????????? | | ???? " # [ ???????????????? | | ???# + ???????????????? | | ???????" # ???????????????? | | ???????" # ???????????????? | | ???????" ?# b ##### ????????????????? | | ????? ?# """"" #?????????????????????? | | ???? ??# """"" g#?????????????????????? | | ????###########+## """""w #?????????????????????? | | ????????????#! # b g#?????????????????????? | | ????????????# # ^""""" #?????????????????????? | | ????????????# # """"" #?????????????????????? | | ????????????? # g""""" #?????????????????????? | | ?????????????# #?????????????????????? | | ?????#???????# g""""" "#?????????????????????? | | ????"""??????#^ """"" "#?????????????????????? | | ????"S""?????#^ i """"" "#?????????????????????? | | ????" ""?????# g T#?????????????????????? | | ??? ????# g """"" "#?????????????????????? | | ??? [ = ???# m h""""" "#?????????????????????? | | # """ #??# ghl""""" "#?????????????????????? | | # """ #??# l #######???????????????? | | # "S """ #??# Ks g @ ??Y?????? | | # """ """ #??# s######## ########???????Y??????? | | ? "" """ ???# s#??????#h #?????????????????????? | | ??? ?????#ps#?????? h #?????????????????????? | | #####+########g #????? #?????????????????????? | | !% #????h #?????????????????????? | | !% #????### ?????????????????????? | | #######/####+####??????# ###????????????????????? | | !???? ?# ????????#+##??????????????????????? | | # """ # ! ????????????????????????????????? | | " # """ # ! #??????????????????????????????? | | " # """ # #??????????????????????????????? | | " # """ ! # =#??????????????????????????????? | | # """ # #??????????????????????????????? | | ###??"" !########??????????????????????????????? | | ??????" / #?????????????????????????????????????? | | ?????? #?????????????????????????????????????? | | ??????######?????????????????????????????????????? | | ?????????????????????????????????????????????????? | | ?????????????????????????????????????????????????? | | ?????????????????????????????????????????????????? | | | | | | | | | +----------------------------------------------------+ Best States ------------- Heat Dissipation 46 Energy Generation 24 Energy Capacity 180 Matter Stores 300 Matter Capacity 300 Sight Range 16 Terrain Scan Density 10 ECM Strength 2 Cloak Strength 5 Power Amplification 20 Corruption Block 16 Armor Coverage 225 Evasion (%) 71 Core Analysis 6 Defensive Hacking 36 Authchip Count 1 Item Schematics ----------------- None Robot Schematics ------------------ None Fabricated ------------ Nothing Alien Tech Used ----------------- None Achievements -------------- None Challenges ------------ None Game ------ Seed SystemPhasingSplitter Manual? 0 Play Time 00:54:04 Cumulative 198.4 hours Start 2023.03.29 @ 22:07:57 End 2023.03.30 @ 09:36:17 Sessions 1 Manual Loads 0 Difficulty Rogue Special Mode None Game No. 78 Rogue 62 Adventurer 8 Explorer 8 Win Type - Total 13 Types 7/0/3/1/1/1/0/0/0 Lore% 84 Gallery% 79 Achievement% 72 Wizard Run 0 Options --------- ASCII 1 Keyboard 1 Movement Vi Keybinds 0 Fullscreen 1 Font 18/CogWide Map View 76x50 Tactical HUD 1 Map Filters NONE Filters NONE Steam X RUN: cd870e6c-c3de-46e9-8231-999d42e34b52